Cogmind - Beta 9 @@@ ROGUE MODE // 2019.10.23 @ 17:10:14 // Halloween2019/Abominations Player: Nikolayag Result: Self-destructed Performance ------------- Evolutions (1) 500 Regions Visited (2) 400 Robots Destroyed (1) 5 Value Destroyed (6) 6 Prototype IDs (0) 0 Alien Tech Used (0) 0 Bonus (0) 0 TOTAL SCORE: 911 Bonus ------- None Cogmind --------- Core Integrity 321/400 Matter 45/300 Energy 250/250 System Corruption 0% Temperature Cool (0) Location -9/Materials Parts ------- Power (1) Ion Engine Propulsion (2) Light Treads Utility (4) Large Storage Unit Large Storage Unit Weapon (2) Inventory (16) Improved Ion Engine Small Storage Unit Weapon Shielding Peak State ------------ Power Light Ion Engine Propulsion Wheel Compact Wheel Utility Small Storage Unit Weapon Medium Laser Assault Rifle Inventory Ion Engine Light Treads Light Treads [Rating: 6] Favorites ----------- Power Ion Engine Engine Ion Engine Propulsion Compact Wheel Treads Light Treads Wheel Compact Wheel Utility Large Storage Unit Storage Large Storage Unit Weapon Medium Laser Energy Gun Medium Laser Ballistic Gun Assault Rifle Build | -11 -10 -9 ------- Run | Scr Mat Mat Slots Evolved 2 | . . 2 Power . | . . . Propulsion . | . . . Utility 2 | . . 2 Weapon . | . . . Parts Attached 13 | 6 6 1 Power 2 | 1 1 . Engine 2 | 1 1 . Core . | . . . Reactor . | . . . Propulsion 5 | 2 2 1 Treads 2 | . 1 1 Leg . | . . . Wheel 3 | 2 1 . Hover . | . . . Flight . | . . . Utility 3 | 1 2 . Device . | . . . Storage 3 | 1 2 . Processor . | . . . Hackware . | . . . Protection . | . . . Artifact . | . . . Weapon 3 | 2 1 . Energy Gun 1 | 1 . . Energy Cannon . | . . . Ballistic Gun 2 | 1 1 . Ballistic Cannon . | . . . Launcher . | . . . Special Weapon . | . . . Impact Weapon . | . . . Slashing Weapon . | . . . Piercing Weapon . | . . . Special Melee Weapon . | . . . Unidentified Prototypes . | . . . Parts Lost 8 | . 5 3 Power 1 | . 1 . Propulsion 4 | . 2 2 Utility . | . . . Weapon 3 | . 2 1 Highest Loss Streak 5 | . 5 3 Average Slot Usage (%) 70 | . 76 57 Engine 13 | . 14 11 Treads 8 | . 7 9 Wheel 15 | . 18 6 Storage 22 | . 22 22 Energy Gun 3 | . 5 . Ballistic Gun 7 | . 7 8 Naked Turns . | . . . Heaviest Build 38 | 11 38 38 Greatest Support 26 | 26 26 20 Greatest Overweight (x) 2 | 1 2 2 Average Overweight (x) . | . . 1 Largest Inventory Capacity 16 | 6 16 16 Average Capacity 11 | 5 11 16 Most Carried 6 | 6 6 4 Average Carried 3 | 3 4 3 Final Capacity 16 | . . 16 Final Carried 3 | . . 3 Class Distribution -------------------- 100% | Mutant Dominant Class ---------------- Mutant | -10/Materials Mutant | -9/Materials Resources | -11 -10 -9 ----------- Run | Scr Mat Mat Matter Collected 38 | 38 . . Remotely . | . . . Salvage Created 73 | 73 . . Parts 2 | 2 . . Haulers Intercepted . | . . . Recyclers Shooed . | . . . Parts Field Recycled . | . . . Retrieved Matter . | . . . Parts Self-Destructed . | . . . Prevented . | . . . Kills | -11 -10 -9 ------- Run | Scr Mat Mat Combat Hostiles Destroyed . | . . . Classes Destroyed 1 | 1 . . Recycler 1 | 1 . . Best Kill Streak 1 | 1 . . Combat Bots Only . | . . . Max Kills in Single Turn 1 | 1 . . Gunslinging . | . . . Exploded . | . . . Melee . | . . . Uniques/NPCs Destroyed . | . . . Combat | -11 -10 -9 -------- Run | Scr Mat Mat Damage Taken 1045 | . 776 269 Core 300 | . 221 79 Absorbed by Shields . | . . . Core Remaining (%) 55 | 100 11 . Volleys Fired 7 | 3 4 . Largest 2 | 2 1 . Hottest 70 | 70 20 . Shots Fired 10 | 6 4 . Gun 10 | 6 4 . Cannon . | . . . Launcher . | . . . Special . | . . . Kinetic 7 | 3 4 . Thermal 3 | 3 . . Explosive . | . . . Electromagnetic . | . . . Robot Hit Streak 3 | 3 . . Robot Miss Streak 4 | 2 4 . Penetration Max . | . . . Secondary Targets . | . . . Shots Hit Robots 4 | 4 . . Core Hits 3 | 2 1 . Critical Hits . | . . . Critical Kills . | . . . Critical Parts Destroyed . | . . . Melee Attacks . | . . . Impact . | . . . Slashing . | . . . Piercing . | . . . Sneak Attacks . | . . . Combat Hostiles . | . . . Follow-up Attacks . | . . . Damage Inflicted 72 | 35 37 . Guns 44 | 35 9 . Cannons . | . . . Explosions . | . . . Melee . | . . . Ramming 28 | . 28 . Kinetic 19 | 10 9 . Thermal 25 | 25 . . Explosive . | . . . Electromagnetic . | . . . Impact . | . . . Slashing . | . . . Piercing . | . . . Highest Corruption 2 | . 2 . Average Corruption 2 | . 2 . Corruption Purged . | . . . Effects 1 | . 1 . Message Errors 1 | . 1 . Overload Shots . | . . . Overflow Damage . | . . . Projectiles . | . . . Explosions . | . . . Melee . | . . . Knockbacks . | . . . Impact . | . . . Kinetic . | . . . Secondary . | . . . Self-Inflicted Damage 13 | . 13 . Shots . | . . . Rammed 4 | . 4 . Targets Rammed 4 | . 4 . Kicked . | . . . Crushed . | . . . Highest Temperature 27 | 27 7 . Average Temperature 11 | 14 3 . Received Heat Transfer 492 | . 402 90 Siege Activations . | . . . Robots Corrupted . | . . . Combat Hostiles . | . . . Parts Fried . | . . . Impact Corruptions . | . . . Robots Melted . | . . . Combat Hostiles . | . . . Parts Melted . | . . . Heat Transferred 74 | 74 . . Parts Sabotaged . | . . . Parts Stolen . | . . . Parts Stripped . | . . . Power Chain Reactions . | . . . Missiles Intercepted . | . . . Alert | -11 -10 -9 ------- Run | Scr Mat Mat Peak Influence 24 | 5 24 21 Average Influence 4 | 1 4 5 Maximum Alert Level . | . . . Low Security (%) 100 | . . . Level 1 . | . . . Level 2 . | . . . Level 3 . | . . . Level 4 . | . . . Level 5 . | . . . High Security . | . . . Max Security . | . . . Squads Dispatched 5 | . 3 2 Investigation 3 | . 2 1 Extermination . | . . . Reinforcement 2 | . 1 1 Assault . | . . . Garrison . | . . . Intercept . | . . . Construction Impeded . | . . . Haulers Reinforced . | . . . Stealth | -11 -10 -9 --------- Run | Scr Mat Mat Distress Signals 3 | . . 3 Communications Jammed . | . . . Distress Signals . | . . . Times Spotted 25 | . 18 7 Peak Tracking Total 10 | . 9 10 Tactical Retreats 2 | . 2 . Traps | -11 -10 -9 ------- Run | Scr Mat Mat Traps Triggered 1 | . . 1 Indirectly . | . . . Trap Hack Attempts . | . . . Triggered . | . . . Disarmed . | . . . Reprogrammed . | . . . Reused . | . . . Traps Extracted . | . . . Installed . | . . . Triggered . | . . . Machines | -11 -10 -9 ---------- Run | Scr Mat Mat Machines Disabled . | . . . Max in Single Turn . | . . . Machines Sabotaged . | . . . Garrisons Compromised . | . . . Overloaded Fab Kills . | . . . Fab Network Shutdowns . | . . . Hacking | -11 -10 -9 --------- Run | Scr Mat Mat Machines Accessed 2 | . 1 1 Terminals 2 | . 1 1 Fabricators . | . . . Repair Stations . | . . . Recycling Units . | . . . Scanalyzers . | . . . Garrison Access . | . . . Total Hacks 7 | . 2 5 Successful 5 | . 1 4 Failed 2 | . 1 1 Catastrophic . | . . . Database Lockouts . | . . . Manual 7 | . 2 5 Terminals 7 | . 2 5 Fabricators . | . . . Repair Stations . | . . . Recycling Units . | . . . Scanalyzers . | . . . Garrison Access . | . . . Terminal Hacks 1 | . . 1 Zone Layout 1 | . . 1 Fabricator Hacks . | . . . Repair Station Hacks . | . . . Recycling Unit Hacks . | . . . Scanalyzer . | . . . Garrison Access Hacks . | . . . Unauthorized Hacks 10 | . 3 7 Terminals 4 | . 1 3 Track 1 | . . 1 Botnet 1 | . . 1 Operators 2 | . 1 1 Fabricators . | . . . Repair Stations . | . . . Recycling Units . | . . . Scanalyzers . | . . . Garrison Access . | . . . Data Cores Recovered . | . . . Used . | . . . Hacking Detections 2 | . 1 1 Full Trace Events 1 | . 1 . Feedback Events . | . . . Feedback Blocked . | . . . Robot Schematics Acquired . | . . . Robots Built . | . . . Matter . | . . . Time . | . . . Total Robot Build Rating . | . . . Part Schematics Acquired . | . . . Parts Built . | . . . Matter . | . . . Time . | . . . Total Part Build Rating . | . . . Parts Repaired . | . . . Time . | . . . Parts Recycled . | . . . Recycled Matter . | . . . Retrieved Matter . | . . . Retrieved Components . | . . . Parts Scanalyzed . | . . . Part Schematics Acquired . | . . . Parts Damaged . | . . . Bothacking | -11 -10 -9 ------------ Run | Scr Mat Mat Used RIF Installer . | . . . Robots Hacked . | . . . Non-combat . | . . . Combat . | . . . Robot Hacks Applied . | . . . Relay Couplers Released . | . . . Robots Rewired . | . . . Allies Hacked . | . . . Hacks Repelled . | . . . Allies | -11 -10 -9 -------- Run | Scr Mat Mat Total Allies . | . . . Largest Group . | . . . Highest-Rated Group . | . . . Highest-Rated Ally . | . . . Total Orders . | . . . Ally Attacks . | . . . Total Damage . | . . . Kills . | . . . Allies Corrupted . | . . . Allies Melted . | . . . Intel | -11 -10 -9 ------- Run | Scr Mat Mat Robot Analysis Total . | . . . Derelict Logs Recovered . | . . . Drone Launches . | . . . Drone Recoveries . | . . . Exploration | -11 -10 -9 ------------- Run | Scr Mat Mat Turns Passed 315 | 67 167 81 Spaces Moved 245 | 48 139 58 Core 4 | 4 . . Treads 16 | . 1 15 Legs . | . . . Wheels 225 | 44 138 43 Hover . | . . . Flight . | . . . Fastest Speed 50 | 50 90 120 Average Speed 109 | 90 105 135 Slowest Speed 180 | 100 180 180 Overloaded Moves . | . . . Propulsion Burnouts . | . . . Robots Hopped . | . . . Cave-ins Triggered . | . . . Exploration Rate (%) 13 | 3 30 8 Regions Visited 2 Branch Regions . Pre-discovered Areas . | . . . Known Exits Taken . | . . . Unknown Exits Taken 2 | 1 1 . Scrap Searched . | . . . Spaces Dug . | . . . Terrain Destroyed . | . . . Melee . | . . . Projectile . | . . . AOE . | . . . Actions | -11 -10 -9 --------- Run | Scr Mat Mat Total 277 | 62 155 60 Wait 1 | . 1 . Move 243 | 47 138 58 Hop . | . . . Pick Up 8 | 6 1 1 Fast Attach 7 | 6 1 . Attach 5 | . 4 1 Detach . | . . . Swap 1 | . 1 . Drop 1 | . 1 . Fire 7 | 3 4 . Melee . | . . . Ram 4 | . 4 . Kick . | . . . Crush . | . . . Escape Stasis . | . . . Rewire . | . . . Trap . | . . . Miscellaneous . | . . . Route ------- -11/Scrapyard -10/Materials -9/Materials History --------- Turn | Location | Event 23 | -11/Scrapyard | Discovered new exit (range 14) 68 | -11/Scrapyard | Entered Materials 94 | -10/Materials | Discovered new exit (range 5) 119 | -10/Materials | Discovered new exit (range 12) 150 | -10/Materials | Core integrity fell below 50% 173 | -10/Materials | Lost 5 parts (1p2n2w) 219 | -10/Materials | Core integrity fell below 20% 235 | -10/Materials | Entered another Materials area 235 | -9/Materials | Evolved 2 slots: Utility x2 309 | -9/Materials | Build established: Mutant 316 | -9/Materials | Self-destructed Last Messages --------------- Terminal linked with 0 systems. Awaiting botnet instructions. >>Layout(Zone) Retrieving Zone 4D layout... Downloaded map data. >>Trojan(Track) Trojan loaded successfully. Testing... Tracking enabled and active. 00275_ Lesser Abomination sheds Sundering Anomaly. 00275_ Lgt. Treads destroyed. 00284_ Lgt. Ion Engine springs to life within a quantum being. 00287_ Com. Wheel destroyed. 00289_ ALERT: Hostiles spotted, dispatching reinforcements to Terminal M002. 00290_ Lgt. Assault Rifle destroyed. 00296_ Triggered Alarm Trap. 00296_ An alarm sounds. 00296_ ALERT: Alarm triggered, dispatching investigation squad. 00313_ T-07 Excavator is excavating. Map ----- +----------------------------------------------------+ | ?????????????????????????????????????????? | | ?????????????????????????????????????????? | | ?????????????????????????????????????????? | | ?????????????????????????????????????????? | | ?????????????????????????????????????????? | | ?????????????????????????????????????????? | | ?????????????????????????????????????????? | | ?????????????????????????????????????????? | | ?????????????????????????????????????????? | | ?????????????????????????????????????????? | | ??????????????????#??????????????????????? | | ?????????????????#t##????????????????????? | | ????????????????? #????????????????????? | | ????????????????? #????????????????????? | | ????????????????? #????????????????????? | | ????????????????? #????????????????????? | | ?????????????????ggg#????????????????????? | | ????????????????# #????????????????????? | | ????????????????# #????????????????????? | | ????????????????# a#????????????????????? | | ????????????????# #######??????????????? | | ????????????????# ??????? ## ## | | ????????????????# ???????? # # | | ????????????????# ????????? # | | ????????????????# #??????????# # | | ????????????????#@ #??????????# # | | ????????????????# #??????????# # # | | ????????????????# #??????????# ####### | | ????????????????# #??????????# ##n | | ????????????????# #??????????# ## | | ????????????????# #??????????# ## """" | | ????????????????# #??????????# ## """" | | ????????????????# #??????????# ## """" | | ????????????????# #??????????# ## | | ????????????????# #??????????# ####### | | ?????????o?????## ##?????????# | | ???????????????# ########### [ | | ???????????????# Y | | ???????????????# ##################### | | ???????????????# #???????????????????? | | ???????????????# #???????????????????? | | ???????????????#######???????????????##### | | ?????????????????????????????????????# | | ?????????????????????????????????????# """ | | ?????????????????????????????????????# """ | | ?????????????????????????????????????# """ | | ?????????????????????????????????????# | | ?????????????????????????????????????# """ | | ?????????????????????????????????????# "R | | ?????????????????????????????????????# """ | +----------------------------------------------------+ Best States ------------- Heat Dissipation 28 Energy Generation 10 Energy Capacity 250 Matter Stores 82 Matter Capacity 300 Sight Range 16 Terrain Scan Density 10 Evasion (%) 42 Recoil Reduction 1 Item Schematics ----------------- None Robot Schematics ------------------ None Fabricated ------------ Nothing Alien Tech Used ----------------- None Achievements -------------- None Challenges ------------ None Game ------ Seed OpticalProcessingTreads Manual? 0 Play Time 00:04:15 Cumulative 158.8 hours Start 2019.10.23 @ 17:07:05 End 2019.10.23 @ 17:10:14 Sessions 1 Manual Loads 0 Difficulty Rogue Special Mode Halloween2019/Abominations Game No. 169 Rogue 169 Adventurer 0 Explorer 0 Win Type - Total 3 Types 3/0/0/0/0/0/0 Lore% 48 Gallery% 67 Achievement% 42 Wizard Run 0 Options --------- ASCII 0 Keyboard 1 Movement Numpad Keybinds 0 Fullscreen 1 Font 18/SmallcapsGlow Map View 76x50 Tactical HUD 1 Map Filters NONE Filters NONE Steam 1 RUN: 47cb4558-4d59-4f8b-b0a8-d4e1edae0810